[Event "*** Titled Tuesday Blitz"]
[Site "Chess.com"]
[Date "2019.04.02"]
[Round "9"]
[White "lucasran"]
[Black "NemtsevIgor"]
[Result "0-1"]
[WhiteElo "2404"]
[BlackElo "2319"]
[TimeControl "180+2"]
[EndTime "16:07:45 PDT"]
[Termination "NemtsevIgor won by checkmate"]

1. c4 {[%clk 0:03:01.9]} 1... c6 {[%clk 0:03:00.8]} 2. Nf3 {[%clk 0:02:57.5]}
2... d6 {[%clk 0:03:01.1]} 3. d4 {[%clk 0:02:57.8]} 3... Nd7 {[%clk 0:03:02.2]}
4. Nc3 {[%clk 0:02:58.7]} 4... h6 {[%clk 0:03:03.1]} 5. Bf4 {[%clk 0:02:56.7]}
5... g5 {[%clk 0:03:03.9]} 6. Bg3 {[%clk 0:02:57.9]} 6... Bg7 {[%clk 0:03:05.1]}
7. h3 {[%clk 0:02:58]} 7... Nf8 {[%clk 0:03:05.9]} 8. e3 {[%clk 0:02:58.4]} 8...
Qb6 {[%clk 0:03:05.9]} 9. Qc2 {[%clk 0:02:58.5]} 9... Qa5 {[%clk 0:02:49.9]} 10.
Bd3 {[%clk 0:02:57.1]} 10... Ne6 {[%clk 0:02:40.5]} 11. O-O {[%clk 0:02:55.9]}
11... h5 {[%clk 0:02:39.8]} 12. a3 {[%clk 0:02:54.7]} 12... g4 {[%clk
0:02:40.8]} 13. b4 {[%clk 0:02:51.9]} 13... Qd8 {[%clk 0:02:39.4]} 14. hxg4
{[%clk 0:02:48.2]} 14... hxg4 {[%clk 0:02:39.9]} 15. Nh4 {[%clk 0:02:46.9]}
15... Ng5 {[%clk 0:02:22.6]} 16. Nf5 {[%clk 0:02:46.1]} 16... Bxf5 {[%clk
0:02:13.6]} 17. Bxf5 {[%clk 0:02:48]} 17... Nf6 {[%clk 0:02:14.1]} 18. c5 {[%clk
0:02:40.3]} 18... e6 {[%clk 0:02:06.4]} 19. Bd3 {[%clk 0:02:24.1]} 19... d5
{[%clk 0:02:06.3]} 20. Bd6 {[%clk 0:02:07.7]} 20... Nh5 {[%clk 0:02:01.1]} 21.
Rfe1 {[%clk 0:01:44.2]} 21... Qf6 {[%clk 0:01:57.7]} 22. Be5 {[%clk 0:01:40.9]}
22... Qh6 {[%clk 0:01:42.1]} 23. Kf1 {[%clk 0:01:28.6]} 23... Bxe5 {[%clk
0:01:36.7]} 24. dxe5 {[%clk 0:01:30.5]} 24... Nf3 {[%clk 0:01:31.9]} 25. gxf3
{[%clk 0:00:43.7]} 25... gxf3 {[%clk 0:01:32]} 26. Red1 {[%clk 0:00:43.2]} 26...
Ng3+ {[%clk 0:01:19.3]} 27. Ke1 {[%clk 0:00:44.1]} 27... Qh2 {[%clk 0:01:05.6]}
28. fxg3 {[%clk 0:00:34]} 28... Qxg3+ {[%clk 0:01:00.9]} 29. Kd2 {[%clk
0:00:34.7]} 29... d4 {[%clk 0:00:58.8]} 30. Ne4 {[%clk 0:00:28.1]} 30... Rh2+
{[%clk 0:00:56.6]} 31. Kc1 {[%clk 0:00:14.4]} 31... Rxc2+ {[%clk 0:00:57.1]} 32.
Bxc2 {[%clk 0:00:15.9]} 32... Qxe5 {[%clk 0:00:51]} 33. Rxd4 {[%clk 0:00:15.5]}
33... Rd8 {[%clk 0:00:38.5]} 34. Nd6+ {[%clk 0:00:09.8]} 34... Rxd6 {[%clk
0:00:39.4]} 35. cxd6 {[%clk 0:00:11.7]} 35... Qxe3+ {[%clk 0:00:39.5]} 36. Rd2
{[%clk 0:00:11.9]} 36... f2 {[%clk 0:00:32.6]} 37. Bd3 {[%clk 0:00:12.8]} 37...
Qxd3 {[%clk 0:00:26.9]} 38. Rxd3 {[%clk 0:00:14.7]} 38... f1=Q+ {[%clk
0:00:28.4]} 39. Rd1 {[%clk 0:00:16]} 39... Qc4+ {[%clk 0:00:28.9]} 40. Kb2
{[%clk 0:00:16]} 40... Kd7 {[%clk 0:00:28.6]} 41. Rac1 {[%clk 0:00:16.1]} 41...
Qe4 {[%clk 0:00:29.4]} 42. Rc2 {[%clk 0:00:05.9]} 42... b6 {[%clk 0:00:22.7]}
43. Rcd2 {[%clk 0:00:05.1]} 43... c5 {[%clk 0:00:22.1]} 44. bxc5 {[%clk
0:00:06.2]} 44... bxc5 {[%clk 0:00:23.5]} 45. Rc2 {[%clk 0:00:07.5]} 45... c4
{[%clk 0:00:23.4]} 46. Rdc1 {[%clk 0:00:05.5]} 46... Kxd6 {[%clk 0:00:20.3]} 47.
Rxc4 {[%clk 0:00:07.1]} 47... Qe5+ {[%clk 0:00:21.2]} 48. Kb3 {[%clk 0:00:08.6]}
48... Ke7 {[%clk 0:00:22.5]} 49. Rc7+ {[%clk 0:00:09.4]} 49... Kf6 {[%clk
0:00:23.4]} 50. Rf1+ {[%clk 0:00:09.2]} 50... Kg7 {[%clk 0:00:23.2]} 51. Rfxf7+
{[%clk 0:00:06.8]} 51... Kg6 {[%clk 0:00:23.7]} 52. Rxa7 {[%clk 0:00:07.3]}
52... Qd5+ {[%clk 0:00:23]} 53. Kb4 {[%clk 0:00:08.1]} 53... Qd4+ {[%clk
0:00:23.8]} 54. Kb5 {[%clk 0:00:09.2]} 54... Qd5+ {[%clk 0:00:24.3]} 55. Kb6
{[%clk 0:00:08.6]} 55... Qd6+ {[%clk 0:00:25]} 56. Kb7 {[%clk 0:00:07.9]} 56...
Kxf7 {[%clk 0:00:24.8]} 57. Ka8+ {[%clk 0:00:04]} 57... Kf6 {[%clk 0:00:25.9]}
58. a4 {[%clk 0:00:05.3]} 58... Qc6+ {[%clk 0:00:25.1]} 59. Kb8 {[%clk
0:00:05.8]} 59... Qb6+ {[%clk 0:00:26.4]} 60. Ka8 {[%clk 0:00:06.2]} 60... e5
{[%clk 0:00:21.6]} 61. a5 {[%clk 0:00:06.4]} 61... Qd8+ {[%clk 0:00:22.3]} 62.
Kb7 {[%clk 0:00:07.2]} 62... e4 {[%clk 0:00:22.7]} 63. Ra6+ {[%clk 0:00:07]}
63... Kf5 {[%clk 0:00:23.3]} 64. Rb6 {[%clk 0:00:05]} 64... e3 {[%clk
0:00:23.3]} 65. a6 {[%clk 0:00:06.3]} 65... Qd7+ {[%clk 0:00:23.7]} 66. Kb8
{[%clk 0:00:06.3]} 66... Qd8+ {[%clk 0:00:24.9]} 67. Kb7 {[%clk 0:00:07.4]}
67... e2 {[%clk 0:00:25.3]} 68. Rb5+ {[%clk 0:00:04.8]} 68... Kf4 {[%clk
0:00:25.7]} 69. Rb4+ {[%clk 0:00:03.4]} 69... Kf3 {[%clk 0:00:26.5]} 70. Rb3+
{[%clk 0:00:04.6]} 70... Kf2 {[%clk 0:00:27.3]} 71. a7 {[%clk 0:00:05.3]} 71...
e1=Q {[%clk 0:00:24.6]} 72. Rb2+ {[%clk 0:00:04.9]} 72... Kf1 {[%clk 0:00:23.9]}
73. Rb6 {[%clk 0:00:03.2]} 73... Qe4+ {[%clk 0:00:22.2]} 74. Ka6 {[%clk
0:00:04]} 74... Qa4+ {[%clk 0:00:21.5]} 75. Kb7 {[%clk 0:00:05]} 75... Qdd7+
{[%clk 0:00:22.3]} 76. Kb8 {[%clk 0:00:05.7]} 76... Qaxa7# {[%clk 0:00:23.2]}
0-1

[Event "*** Titled Tuesday Blitz"]
[Site "Chess.com"]
[Date "2019.04.02"]
[Round "9"]
[White "PaulfromSPb"]
[Black "Sashadav97"]
[Result "0-1"]
[WhiteElo "2634"]
[BlackElo "2550"]
[TimeControl "180+2"]
[EndTime "16:07:49 PDT"]
[Termination "Sashadav97 won by resignation"]

1. e4 {[%clk 0:02:58.7]} 1... c5 {[%clk 0:03:00.7]} 2. Ne2 {[%clk 0:02:58.8]}
2... Nc6 {[%clk 0:03:01.3]} 3. g3 {[%clk 0:02:59.5]} 3... g6 {[%clk 0:03:01.1]}
4. Bg2 {[%clk 0:03:00.4]} 4... Bg7 {[%clk 0:03:02.6]} 5. c3 {[%clk 0:03:01.8]}
5... e5 {[%clk 0:02:59.8]} 6. O-O {[%clk 0:02:59]} 6... Nge7 {[%clk 0:03:01.3]}
7. f4 {[%clk 0:02:53.1]} 7... d6 {[%clk 0:03:00]} 8. d3 {[%clk 0:02:50.1]} 8...
O-O {[%clk 0:02:58.5]} 9. Be3 {[%clk 0:02:50.4]} 9... f5 {[%clk 0:02:49.8]} 10.
Nd2 {[%clk 0:02:50.6]} 10... Be6 {[%clk 0:02:48.6]} 11. Nf3 {[%clk 0:02:45.8]}
11... h6 {[%clk 0:02:48.9]} 12. Qc2 {[%clk 0:02:37.7]} 12... b6 {[%clk
0:02:48.5]} 13. Rae1 {[%clk 0:02:32.7]} 13... Qd7 {[%clk 0:02:48.1]} 14. b3
{[%clk 0:02:17.7]} 14... Rae8 {[%clk 0:02:47.4]} 15. Nh4 {[%clk 0:02:15.7]}
15... d5 {[%clk 0:02:35.4]} 16. fxe5 {[%clk 0:01:56.7]} 16... Nxe5 {[%clk
0:02:30.7]} 17. Nf4 {[%clk 0:01:51.7]} 17... Ng4 {[%clk 0:02:16.2]} 18. Bc1
{[%clk 0:01:46.6]} 18... Bf7 {[%clk 0:02:10.2]} 19. h3 {[%clk 0:01:42]} 19...
Ne5 {[%clk 0:02:06.6]} 20. exf5 {[%clk 0:01:38.6]} 20... Nxf5 {[%clk 0:01:58.5]}
21. Nxf5 {[%clk 0:01:30.7]} 21... Qxf5 {[%clk 0:01:47.9]} 22. Nxd5 {[%clk
0:01:11.4]} 22... Qxd3 {[%clk 0:01:47.9]} 23. Qxd3 {[%clk 0:00:41]} 23... Nxd3
{[%clk 0:01:47.9]} 24. Rxe8 {[%clk 0:00:41]} 24... Rxe8 {[%clk 0:01:49.8]} 25.
c4 {[%clk 0:00:26]} 25... Nxc1 {[%clk 0:01:43.8]} 26. Rxc1 {[%clk 0:00:26.5]}
26... Re2 {[%clk 0:01:42.7]} 27. Rf1 {[%clk 0:00:21.6]} 27... Bd4+ {[%clk
0:01:39.5]} 28. Kh1 {[%clk 0:00:22.5]} 28... Rxa2 {[%clk 0:01:39.5]} 29. Be4
{[%clk 0:00:16.2]} 29... Kg7 {[%clk 0:01:35.8]} 30. Rf3 {[%clk 0:00:13.8]} 30...
Be6 {[%clk 0:01:31.2]} 31. g4 {[%clk 0:00:14.9]} 31... Bf7 {[%clk 0:01:25.6]}
32. Nc7 {[%clk 0:00:14.2]} 32... Rf2 {[%clk 0:01:21.8]} 33. Rxf2 {[%clk
0:00:11.1]} 33... Bxf2 {[%clk 0:01:23.7]} 34. Kg2 {[%clk 0:00:12.9]} 34... Bd4
{[%clk 0:01:24.3]} 35. Nb5 {[%clk 0:00:12.1]} 35... a6 {[%clk 0:01:22]} 36. Nd6
{[%clk 0:00:11.2]} 36... Be6 {[%clk 0:01:13.4]} 37. Bb7 {[%clk 0:00:11.2]} 37...
Kf6 {[%clk 0:01:08.1]} 38. Bxa6 {[%clk 0:00:10.5]} 38... Ke5 {[%clk 0:01:09.3]}
39. Nb5 {[%clk 0:00:09.8]} 39... Bb2 {[%clk 0:01:06.8]} 40. Bb7 {[%clk
0:00:10.5]} 40... h5 {[%clk 0:01:03]} 41. Kf3 {[%clk 0:00:11.2]} 41... h4 {[%clk
0:01:00.9]} 42. Nc7 {[%clk 0:00:11.4]} 42... Bd7 {[%clk 0:00:58]} 43. Be4 {[%clk
0:00:11.9]} 43... g5 {[%clk 0:00:57.9]} 44. Nd5 {[%clk 0:00:12.7]} 44... b5
{[%clk 0:00:54.8]} 45. Nb6 {[%clk 0:00:13.8]} 45... Be8 {[%clk 0:00:54.3]} 46.
Nd5 {[%clk 0:00:13.3]} 46... bxc4 {[%clk 0:00:51]} 47. bxc4 {[%clk 0:00:15.2]}
47... Ba4 {[%clk 0:00:49.1]} 48. Ne3 {[%clk 0:00:14.5]} 48... Bb3 {[%clk
0:00:47.6]} 49. Bd5 {[%clk 0:00:14.1]} 49... Bd4 {[%clk 0:00:44.9]} 50. Bg8
{[%clk 0:00:13.9]} 50... Ba2 {[%clk 0:00:38.7]} 51. Nf1 {[%clk 0:00:10.6]} 51...
Bb1 {[%clk 0:00:39.3]} 52. Nd2 {[%clk 0:00:09.2]} 52... Bd3 {[%clk 0:00:37.7]}
53. Bf7 {[%clk 0:00:10.2]} 53... Bc2 {[%clk 0:00:29.6]} 54. Bg8 {[%clk
0:00:09.8]} 54... Bd1+ {[%clk 0:00:30.7]} 55. Kg2 {[%clk 0:00:09.1]} 55... Kf4
{[%clk 0:00:31.8]} 56. Bd5 {[%clk 0:00:09.3]} 56... Ke3 {[%clk 0:00:30.7]} 57.
Nf3 {[%clk 0:00:10]} 57... Bf6 {[%clk 0:00:31.9]} 58. Ne1 {[%clk 0:00:08.4]}
58... Be2 {[%clk 0:00:27.8]} 59. Nf3 {[%clk 0:00:08.4]} 59... Kd3 {[%clk
0:00:25.9]} 60. Kf2 {[%clk 0:00:09.1]} 60... Bd1 {[%clk 0:00:25.7]} 61. Ne1+
{[%clk 0:00:09.2]} 61... Kc3 {[%clk 0:00:23.2]} 62. Ng2 {[%clk 0:00:09.9]} 62...
Bd4+ {[%clk 0:00:21.6]} 63. Ke1 {[%clk 0:00:10.5]} 63... Bb3 {[%clk 0:00:22.4]}
64. Ke2 {[%clk 0:00:10]} 64... Bxc4+ {[%clk 0:00:23.6]} 65. Bxc4 {[%clk
0:00:11.9]} 65... Kxc4 {[%clk 0:00:25.5]} 66. Ne1 {[%clk 0:00:12.9]} 66... Kd5
{[%clk 0:00:26.3]} 67. Nf3 {[%clk 0:00:13.1]} 67... Bf6 {[%clk 0:00:26.5]} 68.
Ke3 {[%clk 0:00:14.2]} 68... c4 {[%clk 0:00:26.8]} 69. Ne1 {[%clk 0:00:12.1]}
69... Kc5 {[%clk 0:00:25.1]} 70. Nc2 {[%clk 0:00:12.4]} 70... Kb5 {[%clk
0:00:26.2]} 71. Kd2 {[%clk 0:00:11.2]} 71... Ka4 {[%clk 0:00:27.2]} 72. Kc1
{[%clk 0:00:11.1]} 72... Kb3 {[%clk 0:00:22.8]} 73. Ne3 {[%clk 0:00:12]} 73...
Be5 {[%clk 0:00:19.3]} 74. Kd1 {[%clk 0:00:10.9]} 74... Kc3 {[%clk 0:00:19.8]}
75. Ke2 {[%clk 0:00:10.4]} 75... Kd4 {[%clk 0:00:17.9]} 76. Nc2+ {[%clk
0:00:06.6]} 76... Kc3 {[%clk 0:00:18.8]} 77. Ne3 {[%clk 0:00:07.5]} 77... Kb3
{[%clk 0:00:20.4]} 78. Kd2 {[%clk 0:00:07.9]} 78... Bf4 {[%clk 0:00:21.4]} 79.
Ke2 {[%clk 0:00:05.9]} 79... Bxe3 {[%clk 0:00:23.3]} 0-1

[Event "*** Titled Tuesday Blitz"]
[Site "Chess.com"]
[Date "2019.04.02"]
[Round "9"]
[White "Yurovskykh_Oleksandr"]
[Black "IMRosen"]
[Result "0-1"]
[WhiteElo "2514"]
[BlackElo "2539"]
[TimeControl "180+2"]
[EndTime "16:08:08 PDT"]
[Termination "IMRosen won by checkmate"]

1. d4 {[%clk 0:02:29.9]} 1... Nf6 {[%clk 0:02:59.6]} 2. Nf3 {[%clk 0:02:30.7]}
2... d5 {[%clk 0:02:59.9]} 3. c3 {[%clk 0:02:30.9]} 3... c5 {[%clk 0:03:00]} 4.
e3 {[%clk 0:02:30.6]} 4... cxd4 {[%clk 0:03:00.1]} 5. exd4 {[%clk 0:02:32.5]}
5... Nc6 {[%clk 0:03:01.1]} 6. Bf4 {[%clk 0:02:29.1]} 6... Bg4 {[%clk
0:03:00.2]} 7. Nbd2 {[%clk 0:02:29.9]} 7... e6 {[%clk 0:03:00.1]} 8. Qb3 {[%clk
0:02:30.8]} 8... Qb6 {[%clk 0:02:59.4]} 9. Qxb6 {[%clk 0:02:30]} 9... axb6
{[%clk 0:03:01.3]} 10. Ne5 {[%clk 0:02:29.1]} 10... Nxe5 {[%clk 0:02:58.9]} 11.
Bxe5 {[%clk 0:02:31]} 11... Nd7 {[%clk 0:03:00]} 12. Bb5 {[%clk 0:02:21.7]}
12... Kd8 {[%clk 0:02:21.9]} 13. Bg3 {[%clk 0:02:17.1]} 13... Nb8 {[%clk
0:01:44.6]} 14. O-O {[%clk 0:02:03.2]} 14... Nc6 {[%clk 0:01:43.6]} 15. Rfe1
{[%clk 0:02:00.8]} 15... Kd7 {[%clk 0:01:41.2]} 16. h3 {[%clk 0:02:01.3]} 16...
Bh5 {[%clk 0:01:40.5]} 17. Nf1 {[%clk 0:02:00.1]} 17... Bd6 {[%clk 0:01:40.5]}
18. Bxd6 {[%clk 0:02:00.4]} 18... Kxd6 {[%clk 0:01:42.4]} 19. Ng3 {[%clk
0:02:00.4]} 19... Bg6 {[%clk 0:01:43.6]} 20. Ne2 {[%clk 0:01:57.9]} 20... f6
{[%clk 0:01:33.4]} 21. Nf4 {[%clk 0:01:57.6]} 21... Bf7 {[%clk 0:01:34.4]} 22.
a3 {[%clk 0:01:55.2]} 22... g5 {[%clk 0:01:35.8]} 23. Ne2 {[%clk 0:01:51.7]}
23... Na7 {[%clk 0:01:30]} 24. Bd3 {[%clk 0:01:52]} 24... Be8 {[%clk 0:01:25.7]}
25. Ng3 {[%clk 0:01:49]} 25... Bd7 {[%clk 0:01:25.2]} 26. Rad1 {[%clk
0:01:49.7]} 26... Nc6 {[%clk 0:01:25.6]} 27. Nh5 {[%clk 0:01:50.4]} 27... Raf8
{[%clk 0:01:20.7]} 28. Re3 {[%clk 0:01:42.1]} 28... Na5 {[%clk 0:01:12.8]} 29.
Rde1 {[%clk 0:01:41.4]} 29... Nc4 {[%clk 0:01:11]} 30. Bxc4 {[%clk 0:01:38.1]}
30... dxc4 {[%clk 0:01:12]} 31. Kf1 {[%clk 0:01:20.4]} 31... Rf7 {[%clk
0:01:12.3]} 32. Ng3 {[%clk 0:01:18.6]} 32... Re8 {[%clk 0:01:08.7]} 33. Ne4+
{[%clk 0:01:19.7]} 33... Kc7 {[%clk 0:01:08.1]} 34. Nd2 {[%clk 0:01:20.7]} 34...
b5 {[%clk 0:01:07.6]} 35. Ne4 {[%clk 0:01:21]} 35... b6 {[%clk 0:01:04.5]} 36.
Ng3 {[%clk 0:01:21]} 36... Rfe7 {[%clk 0:01:02.1]} 37. Nh5 {[%clk 0:01:21.7]}
37... Rf8 {[%clk 0:01:02.8]} 38. f4 {[%clk 0:01:08.6]} 38... Be8 {[%clk
0:00:52.1]} 39. g4 {[%clk 0:01:09.9]} 39... Bxh5 {[%clk 0:00:50.2]} 40. gxh5
{[%clk 0:01:11.8]} 40... Kd6 {[%clk 0:00:48.3]} 41. fxg5 {[%clk 0:01:12.5]}
41... fxg5+ {[%clk 0:00:50.2]} 42. Kg2 {[%clk 0:01:13.8]} 42... Rf5 {[%clk
0:00:37.6]} 43. Re5 {[%clk 0:01:13.5]} 43... Kd7 {[%clk 0:00:34]} 44. Kg3 {[%clk
0:00:59.5]} 44... h6 {[%clk 0:00:17.3]} 45. R1e2 {[%clk 0:00:36.4]} 45... Kd6
{[%clk 0:00:13.8]} 46. Kg4 {[%clk 0:00:31.2]} 46... Kd7 {[%clk 0:00:10.6]} 47.
h4 {[%clk 0:00:19.3]} 47... Rf4+ {[%clk 0:00:10.2]} 48. Kg3 {[%clk 0:00:20.3]}
48... Rxh4 {[%clk 0:00:09.2]} 49. d5 {[%clk 0:00:21.2]} 49... Rxh5 {[%clk
0:00:06.3]} 50. dxe6+ {[%clk 0:00:20.7]} 50... Kc6 {[%clk 0:00:07.3]} 51. Rd2
{[%clk 0:00:18]} 51... Rh1 {[%clk 0:00:06]} 52. Rdd5 {[%clk 0:00:18.5]} 52...
Rg1+ {[%clk 0:00:05.2]} 53. Kh2 {[%clk 0:00:19.3]} 53... Rb1 {[%clk 0:00:04.6]}
54. Rxb5 {[%clk 0:00:20.7]} 54... Rxe6 {[%clk 0:00:06.1]} 55. Rxb6+ {[%clk
0:00:20.5]} 55... Kxb6 {[%clk 0:00:04.9]} 56. Rxe6+ {[%clk 0:00:21.9]} 56... Kb5
{[%clk 0:00:06.2]} 57. Rxh6 {[%clk 0:00:21.5]} 57... Rxb2+ {[%clk 0:00:07.3]}
58. Kg3 {[%clk 0:00:22.9]} 58... Rb3 {[%clk 0:00:08.5]} 59. Rg6 {[%clk
0:00:22.4]} 59... Rxc3+ {[%clk 0:00:08.7]} 60. Kf2 {[%clk 0:00:23.7]} 60... Rxa3
{[%clk 0:00:07.8]} 61. Rxg5+ {[%clk 0:00:24.9]} 61... Kb4 {[%clk 0:00:09.1]} 62.
Ke2 {[%clk 0:00:26.5]} 62... Rd3 {[%clk 0:00:09.9]} 63. Rg1 {[%clk 0:00:20.1]}
63... Rd8 {[%clk 0:00:10]} 64. Rg3 {[%clk 0:00:06.2]} 64... c3 {[%clk
0:00:10.2]} 65. Ke1 {[%clk 0:00:05.5]} 65... Kb3 {[%clk 0:00:10.6]} 66. Rg7
{[%clk 0:00:06.3]} 66... Kc2 {[%clk 0:00:11]} 67. Rb7 {[%clk 0:00:06.8]} 67...
Re8+ {[%clk 0:00:11.3]} 68. Kf2 {[%clk 0:00:07.1]} 68... Kd2 {[%clk 0:00:12.7]}
69. Rd7+ {[%clk 0:00:08.1]} 69... Kc1 {[%clk 0:00:13.8]} 70. Rb7 {[%clk
0:00:09.1]} 70... c2 {[%clk 0:00:14]} 71. Rb6 {[%clk 0:00:09.8]} 71... Re5
{[%clk 0:00:14.2]} 72. Rb8 {[%clk 0:00:07.6]} 72... Kd2 {[%clk 0:00:14.8]} 73.
Rd8+ {[%clk 0:00:08.3]} 73... Kc3 {[%clk 0:00:15.1]} 74. Rc8+ {[%clk 0:00:09.8]}
74... Kb3 {[%clk 0:00:16]} 75. Rb8+ {[%clk 0:00:11.2]} 75... Kc4 {[%clk
0:00:16.4]} 76. Rc8+ {[%clk 0:00:12.9]} 76... Rc5 {[%clk 0:00:16.1]} 77. Rh8
{[%clk 0:00:14]} 77... c1=Q {[%clk 0:00:16.3]} 78. Rh4+ {[%clk 0:00:15.6]} 78...
Kd3 {[%clk 0:00:16.9]} 79. Rh3+ {[%clk 0:00:16.6]} 79... Kd2 {[%clk 0:00:17.4]}
80. Kg2 {[%clk 0:00:18]} 80... Rg5+ {[%clk 0:00:17.1]} 81. Kh2 {[%clk
0:00:19.2]} 81... Qc7+ {[%clk 0:00:17.4]} 82. Kh1 {[%clk 0:00:19.8]} 82... Qc6+
{[%clk 0:00:18.5]} 83. Kh2 {[%clk 0:00:20.8]} 83... Qd6+ {[%clk 0:00:20]} 84.
Kh1 {[%clk 0:00:21]} 84... Qd5+ {[%clk 0:00:21.4]} 85. Kh2 {[%clk 0:00:22.6]}
85... Qe5+ {[%clk 0:00:22.9]} 86. Kh1 {[%clk 0:00:24]} 86... Qe1+ {[%clk
0:00:23.9]} 87. Kh2 {[%clk 0:00:24.8]} 87... Qg1# {[%clk 0:00:25.8]} 0-1

[Event "*** Titled Tuesday Blitz"]
[Site "Chess.com"]
[Date "2019.04.02"]
[Round "9"]
[White "WPWPWP-2015"]
[Black "Chesstrainer1"]
[Result "1-0"]
[WhiteElo "2374"]
[BlackElo "2394"]
[TimeControl "180+2"]
[EndTime "16:08:38 PDT"]
[Termination "WPWPWP-2015 won on time"]

1. e4 {[%clk 0:03:01.9]} 1... c6 {[%clk 0:02:58]} 2. d4 {[%clk 0:03:01.9]} 2...
d5 {[%clk 0:02:58.9]} 3. e5 {[%clk 0:03:03.3]} 3... Bf5 {[%clk 0:02:57.4]} 4.
Nf3 {[%clk 0:03:04.4]} 4... e6 {[%clk 0:02:56.4]} 5. Be2 {[%clk 0:03:05.7]} 5...
Nd7 {[%clk 0:02:49.5]} 6. O-O {[%clk 0:03:05.2]} 6... Bg6 {[%clk 0:02:48]} 7. a4
{[%clk 0:03:05.1]} 7... Nh6 {[%clk 0:02:41.9]} 8. c3 {[%clk 0:03:05.8]} 8... Nf5
{[%clk 0:02:34.3]} 9. a5 {[%clk 0:03:06.3]} 9... c5 {[%clk 0:02:26.5]} 10. a6
{[%clk 0:03:04.4]} 10... bxa6 {[%clk 0:02:27.4]} 11. Bxa6 {[%clk 0:03:01.1]}
11... Rb8 {[%clk 0:02:16.1]} 12. Na3 {[%clk 0:02:54.5]} 12... cxd4 {[%clk
0:02:01]} 13. Nxd4 {[%clk 0:02:47.2]} 13... Nxd4 {[%clk 0:01:57.8]} 14. cxd4
{[%clk 0:02:48]} 14... Rb6 {[%clk 0:01:38.7]} 15. Bb5 {[%clk 0:02:39.6]} 15...
a6 {[%clk 0:01:35.7]} 16. Ba4 {[%clk 0:02:38.1]} 16... Be7 {[%clk 0:01:33.2]}
17. Bd2 {[%clk 0:02:38.8]} 17... Rxb2 {[%clk 0:01:30.6]} 18. Qc1 {[%clk
0:02:33.1]} 18... Rxd2 {[%clk 0:01:10.7]} 19. Qxd2 {[%clk 0:02:29.7]} 19... O-O
{[%clk 0:01:12.2]} 20. Bc2 {[%clk 0:02:24.8]} 20... a5 {[%clk 0:01:05]} 21. Bxg6
{[%clk 0:02:21.5]} 21... hxg6 {[%clk 0:01:06.9]} 22. Nb5 {[%clk 0:02:21.1]}
22... Bb4 {[%clk 0:01:07.2]} 23. Qa2 {[%clk 0:02:17.2]} 23... Nb6 {[%clk
0:00:54.5]} 24. Nd6 {[%clk 0:02:12.8]} 24... Qh4 {[%clk 0:00:51]} 25. Rfd1
{[%clk 0:02:07]} 25... Bc3 {[%clk 0:00:46.6]} 26. Rab1 {[%clk 0:02:03.9]} 26...
Bb4 {[%clk 0:00:28.7]} 27. g3 {[%clk 0:01:57.4]} 27... Qg4 {[%clk 0:00:17.1]}
28. Kg2 {[%clk 0:01:46.8]} 28... Qg5 {[%clk 0:00:16]} 29. Nb7 {[%clk 0:01:39.2]}
29... Ra8 {[%clk 0:00:14.3]} 30. Nc5 {[%clk 0:01:31.5]} 30... Qe7 {[%clk
0:00:13.9]} 31. Na4 {[%clk 0:01:31.8]} 31... Nc4 {[%clk 0:00:13.2]} 32. Rdc1
{[%clk 0:01:32.2]} 32... Rc8 {[%clk 0:00:12.2]} 33. Kg1 {[%clk 0:01:22.6]} 33...
Qa7 {[%clk 0:00:12.2]} 34. Qa1 {[%clk 0:01:15.1]} 34... Rc7 {[%clk 0:00:11.9]}
35. Rd1 {[%clk 0:01:10.1]} 35... Rd7 {[%clk 0:00:10.5]} 36. Qa2 {[%clk
0:01:08.2]} 36... Rc7 {[%clk 0:00:10.8]} 37. Rbc1 {[%clk 0:01:08.4]} 37... Qa6
{[%clk 0:00:11.3]} 38. Rc2 {[%clk 0:01:06.5]} 38... Qb5 {[%clk 0:00:12.3]} 39.
Nc3 {[%clk 0:01:06.2]} 39... Qb6 {[%clk 0:00:12.6]} 40. Ne2 {[%clk 0:01:05.4]}
40... Rb7 {[%clk 0:00:12.5]} 41. Rb1 {[%clk 0:01:05.5]} 41... Qa6 {[%clk
0:00:12.9]} 42. Qa4 {[%clk 0:01:02.6]} 42... Qb6 {[%clk 0:00:12.7]} 43. Rcc1
{[%clk 0:01:00.1]} 43... Rb8 {[%clk 0:00:12.4]} 44. Qd1 {[%clk 0:00:58.2]} 44...
Qa7 {[%clk 0:00:11.5]} 45. Nc3 {[%clk 0:00:57.1]} 45... Qb6 {[%clk 0:00:10.3]}
46. Na4 {[%clk 0:00:57.6]} 46... Qb5 {[%clk 0:00:10]} 47. h4 {[%clk 0:00:54.3]}
47... Rc8 {[%clk 0:00:10.7]} 48. Nc3 {[%clk 0:00:53.1]} 48... Qb6 {[%clk
0:00:11.3]} 49. Na4 {[%clk 0:00:53.9]} 49... Qc6 {[%clk 0:00:12.1]} 50. Nb2
{[%clk 0:00:49.1]} 50... Qb5 {[%clk 0:00:12.1]} 51. Nd3 {[%clk 0:00:48.7]} 51...
Qb6 {[%clk 0:00:10.5]} 52. Nf4 {[%clk 0:00:44.3]} 52... Rb8 {[%clk 0:00:10.5]}
53. h5 {[%clk 0:00:44.7]} 53... g5 {[%clk 0:00:10.6]} 54. Nh3 {[%clk 0:00:44.6]}
54... Qd8 {[%clk 0:00:10.6]} 55. Qg4 {[%clk 0:00:42.9]} 55... Bd2 {[%clk
0:00:09.3]} 56. Rd1 {[%clk 0:00:39.5]} 56... a4 {[%clk 0:00:09.1]} 57. Rxb8
{[%clk 0:00:37.9]} 57... Qxb8 {[%clk 0:00:09.5]} 58. Nxg5 {[%clk 0:00:38.2]}
58... Qb3 {[%clk 0:00:10.1]} 59. Rf1 {[%clk 0:00:27.3]} 59... a3 {[%clk
0:00:09.5]} 60. h6 {[%clk 0:00:27.1]} 60... Qd3 {[%clk 0:00:06.9]} 61. h7+
{[%clk 0:00:26.3]} 61... Kh8 {[%clk 0:00:06.8]} 62. Nxf7+ {[%clk 0:00:21]} 62...
Kxh7 {[%clk 0:00:07.8]} 63. Qh3+ {[%clk 0:00:19.2]} 63... Bh6 {[%clk 0:00:03.8]}
64. Ng5+ {[%clk 0:00:18.1]} 64... Kg6 {[%clk 0:00:03.2]} 65. Nxe6 {[%clk
0:00:11.6]} 65... a2 {[%clk 0:00:02.4]} 66. Qg4+ {[%clk 0:00:11.2]} 66... Kh7
{[%clk 0:00:02.7]} 67. Nc5 {[%clk 0:00:11.5]} 67... Qxf1+ {[%clk 0:00:02.9]} 68.
Kxf1 {[%clk 0:00:11.2]} 68... a1=Q+ {[%clk 0:00:04.8]} 69. Kg2 {[%clk
0:00:11.8]} 69... Qb1 {[%clk 0:00:05.7]} 70. Qe6 {[%clk 0:00:10.3]} 70... Qc2
{[%clk 0:00:04.6]} 71. Nd7 {[%clk 0:00:08.9]} 71... Ne3+ {[%clk 0:00:04.8]} 72.
Kh3 {[%clk 0:00:06.8]} 72... Qf5+ {[%clk 0:00:05.4]} 73. Qxf5+ {[%clk 0:00:07]}
73... Nxf5 {[%clk 0:00:07.3]} 74. Nb6 {[%clk 0:00:07.1]} 74... Nxd4 {[%clk
0:00:06.3]} 75. Nxd5 {[%clk 0:00:08.1]} 75... Nf3 {[%clk 0:00:04.2]} 76. e6
{[%clk 0:00:08]} 76... Kg8 {[%clk 0:00:04.4]} 77. Kg4 {[%clk 0:00:07.5]} 77...
Nd4 {[%clk 0:00:04]} 78. Nc7 {[%clk 0:00:04.2]} 78... Kf8 {[%clk 0:00:04.7]} 79.
f4 {[%clk 0:00:05]} 79... Ke7 {[%clk 0:00:05.7]} 80. f5 {[%clk 0:00:06.4]} 80...
g6 {[%clk 0:00:05.6]} 81. Nd5+ {[%clk 0:00:07.4]} 81... Kd6 {[%clk 0:00:06.1]}
82. e7 {[%clk 0:00:02.5]} 82... gxf5+ {[%clk 0:00:06.4]} 83. Kh5 {[%clk
0:00:03.5]} 83... Kd7 {[%clk 0:00:04.3]} 84. Kxh6 {[%clk 0:00:04]} 84... Ne2
{[%clk 0:00:04.3]} 85. Kg7 {[%clk 0:00:03.6]} 1-0